bitfinex/quotes_BTCUSD_20250523
["timestamp","ask_amount","ask_price","bid_price","bid_amount"]
[1748037267912,0.68585129,108270.0,108260.0,0.00054742]
[1748037268185,0.68985129,108270.0,108260.0,0.00054742]
[1748037268401,0.69908728,108270.0,108260.0,0.00054742]
[1748037268814,0.70308728,108270.0,108260.0,0.00054742]
[1748037269146,1.04308728,108270.0,108260.0,0.00054742]
[1748037270016,1.41196728,108270.0,108260.0,0.01054742]
[1748037271577,0.76636728,108270.0,108260.0,0.01054742]
[1748037271782,1.42855628,108270.0,108260.0,0.01054742]
[1748037275101,1.43855628,108270.0,108260.0,0.01054742]
[1748037275749,1.43255628,108270.0,108260.0,0.01054742]
[1748037276581,1.52947628,108270.0,108260.0,0.01054742]
[1748037277020,0.93906628,108270.0,108260.0,0.01054742]
[1748037277226,1.59762628,108270.0,108260.0,0.01054742]
[1748037278261,2.10931979,108270.0,108260.0,0.01054742]
[1748037278465,1.45075979,108270.0,108260.0,0.01054742]
[1748037279569,2.10935979,108270.0,108260.0,0.01054742]
[1748037281343,0.1947575,108250.0,108210.0,0.72172]
[1748037281553,0.18480872,108220.0,108210.0,0.72172]
[1748037281772,0.27435428,108220.0,108210.0,0.72172]
[1748037282649,0.27435428,108220.0,108210.0,0.72472]
[1748037282855,0.27435428,108220.0,108210.0,0.73333023]
[1748037283066,0.27435428,108220.0,108210.0,0.73909951]
[1748037283309,0.39391146,108220.0,108210.0,0.01737951]
[1748037283544,0.31427037,108220.0,108210.0,0.02337951]
[1748037283770,0.32881122,108220.0,108210.0,0.02337951]
[1748037284429,0.32881122,108220.0,108210.0,0.43321951]
[1748037284663,0.28289513,108220.0,108210.0,0.45991951]
[1748037285103,0.26835428,108220.0,108210.0,0.48771951]
[1748037287641,0.26835428,108220.0,108210.0,0.76463951]
[1748037288865,0.26835428,108220.0,108210.0,0.7756309]
[1748037289834,0.26835428,108220.0,108210.0,1.3189391]
[1748037289835,0.17880872,108220.0,108210.0,1.3189391]
[1748037290368,0.18480666,108230.0,108220.0,0.00924035]
[1748037290571,0.01847856,108230.0,108220.0,0.62683885]
[1748037290780,0.01847813,108230.0,108220.0,1.01699712]
[1748037290999,0.02771694,108230.0,108220.0,1.01699712]
[1748037291201,0.00923796,108240.0,108230.0,0.59745736]
[1748037291448,0.00923796,108240.0,108230.0,1.50386485]
[1748037291449,0.03695302,108240.0,108230.0,1.50386485]
[1748037291816,0.03695294,108240.0,108230.0,1.44413085]
[1748037292015,0.01480289,108240.0,108230.0,1.40436513]
[1748037292230,0.01480289,108240.0,108230.0,2.08124513]
[1748037292430,0.02404127,108240.0,108230.0,2.08124513]
[1748037292631,0.21805439,108240.0,108230.0,2.05999015]
[1748037292850,0.21805439,108240.0,108230.0,2.04781015]
[1748037293303,0.21805439,108240.0,108230.0,2.06104922]
[1748037293453,0.21248997,108240.0,108230.0,1.765611]
[1748037293653,0.19401329,108240.0,108230.0,1.59754279]
[1748037293885,0.18477457,108240.0,108230.0,1.59754279]
[1748037294254,0.02771557,108240.0,108230.0,1.80885197]
[1748037294493,0.21249014,108240.0,108230.0,1.79961299]
[1748037295272,0.21249014,108240.0,108230.0,1.79961316]
[1748037295520,0.21249014,108240.0,108230.0,1.82537147]
[1748037295724,0.01847634,108240.0,108230.0,1.82537147]
[1748037295863,0.03695361,108240.0,108230.0,1.84384969]
[1748037296439,0.22172818,108240.0,108230.0,1.84384969]
[1748037296929,0.02771489,108240.0,108230.0,1.84384969]
[1748037297078,0.22172818,108240.0,108230.0,1.83461071]
[1748037297329,0.22172818,108240.0,108230.0,1.84384986]
[1748037297767,0.21249014,108240.0,108230.0,1.84384986]
[1748037298174,0.20325184,108240.0,108230.0,1.83461071]
[1748037298399,0.20325184,108240.0,108230.0,1.31367796]
[1748037298595,0.20325184,108240.0,108230.0,1.68192067]
[1748037298834,0.20325184,108240.0,108230.0,1.67268152]
[1748037299046,0.19401329,108240.0,108230.0,1.67268152]
[1748037299219,0.19401329,108240.0,108230.0,1.5962522]
[1748037299628,0.18477457,108240.0,108230.0,1.59625237]
[1748037300597,0.18477457,108240.0,108230.0,0.83344759]
[1748037300798,0.18477457,108240.0,108230.0,1.11032759]
[1748037302663,0.18477457,108240.0,108230.0,0.83344759]
[1748037302874,0.18477457,108240.0,108230.0,1.11032759]
[1748037304400,0.18477457,108240.0,108230.0,1.08456928]
[1748037305022,0.18477457,108240.0,108230.0,0.80768928]
[1748037305240,0.18477457,108240.0,108230.0,1.08456928]
[1748037305452,0.18477457,108240.0,108230.0,0.40776928]
[1748037305663,0.18477457,108240.0,108230.0,1.09444928]
[1748037306598,0.17877457,108240.0,108230.0,1.09444928]
[1748037306803,0.17877457,108240.0,108230.0,1.06834928]
[1748037306935,0.17877457,108240.0,108230.0,1.07934657]
[1748037307355,0.17877457,108240.0,108230.0,1.10704657]
[1748037309912,0.17877457,108240.0,108230.0,1.60747712]
[1748037314382,0.17277457,108240.0,108230.0,1.60747712]
[1748037315051,0.17277457,108240.0,108230.0,1.09604928]
[1748037315254,0.17277457,108240.0,108230.0,1.60747712]
[1748037318146,0.17277457,108240.0,108230.0,1.33059712]
[1748037318341,0.17277457,108240.0,108230.0,1.57977712]
[1748037318917,0.17277457,108240.0,108230.0,1.91201712]
[1748037319562,0.17277457,108240.0,108230.0,1.57049712]
[1748037319771,0.17277457,108240.0,108230.0,0.89533712]
[1748037319993,0.17277457,108240.0,108230.0,1.57049712]
[1748037320391,0.17277457,108240.0,108230.0,0.89533712]
[1748037320603,0.26232013,108240.0,108230.0,0.75528928]
[1748037320826,0.37820207,108240.0,108230.0,0.75528928]
[1748037320980,0.40600207,108240.0,108230.0,0.75528928]
[1748037321978,0.40000207,108240.0,108230.0,0.35300928]
[1748037322181,0.40000207,108240.0,108230.0,0.74928928]
[1748037322678,1.42970207,108240.0,108230.0,0.74928928]
[1748037322918,1.52222358,108240.0,108230.0,0.74928928]
[1748037323065,1.43270207,108240.0,108230.0,0.74928928]
[1748037323478,1.43470207,108240.0,108230.0,0.74928928]
[1748037323844,1.43270207,108240.0,108230.0,0.34224]
[1748037324240,1.36006098,108240.0,108230.0,0.34224]
[1748037324453,1.36406098,108240.0,108230.0,0.34224]
[1748037325698,0.76388249,108240.0,108230.0,0.34224]
[1748037326341,1.05076249,108240.0,108230.0,0.01]
[1748037326582,1.06076249,108240.0,108230.0,0.01]
[1748037326846,1.64683142,108240.0,108230.0,0.01]
[1748037327546,1.13540358,108240.0,108230.0,0.01]
[1748037328678,1.06176249,108240.0,108230.0,0.01]
[1748037329904,1.05576249,108240.0,108230.0,0.01]
[1748037330326,1.56719033,108240.0,108230.0,0.01]
[1748037330562,1.56723033,108240.0,108230.0,0.01]
[1748037331171,1.61250033,108240.0,108230.0,0.01]
[1748037331522,1.70942033,108240.0,108230.0,0.01]
[1748037331729,0.94178013,108240.0,108230.0,0.01]
[1748037331936,0.95632098,108240.0,108230.0,0.01]
[1748037332361,1.47774882,108240.0,108230.0,0.01]
[1748037334634,1.20078882,108240.0,108230.0,0.01]
[1748037334845,1.47774882,108240.0,108230.0,0.01]
[1748037335116,1.56727033,108240.0,108230.0,0.01]
[1748037337058,1.62254033,108240.0,108230.0,0.01]
[1748037337718,1.56727033,108240.0,108230.0,0.01]
[1748037337947,1.56127033,108240.0,108230.0,0.01]
[1748037339667,1.46174882,108240.0,108230.0,0.01]
[1748037340299,0.25332013,108240.0,108230.0,0.01]
[1748037340882,0.26786098,108240.0,108230.0,0.01]
[1748037345545,0.26186098,108240.0,108230.0,0.01]
[1748037345955,0.28776098,108240.0,108230.0,0.01]
[1748037346158,0.28776098,108240.0,108230.0,0.40016]
[1748037346529,0.31456098,108240.0,108230.0,0.01]
[1748037346730,0.26186098,108240.0,108230.0,0.01]
[1748037346966,0.28966098,108240.0,108230.0,0.01]
[1748037347170,0.31646098,108240.0,108230.0,0.01]
[1748037347955,0.32646098,108240.0,108230.0,0.01]
[1748037348566,0.83788882,108240.0,108230.0,0.01]
[1748037349378,0.32646098,108240.0,108230.0,0.01]
[1748037349748,0.41598249,108240.0,108230.0,0.01]
[1748037350365,0.92741033,108240.0,108230.0,0.01]
[1748037350769,1.20437033,108240.0,108230.0,0.01]
[1748037353173,1.19837033,108240.0,108230.0,0.01]
[1748037353796,1.19837033,108240.0,108180.0,0.7506332]
[1748037353797,0.18485996,108190.0,108180.0,0.7506332]
[1748037354019,0.19410278,108190.0,108180.0,1.41790536]
[1748037354679,0.19410278,108190.0,108180.0,1.03417216]
[1748037355098,0.19410278,108190.0,108180.0,1.04800337]
[1748037355302,0.19410278,108190.0,108180.0,1.06062713]
[1748037355511,0.19410278,108190.0,108180.0,1.06066713]
[1748037355930,0.19410278,108190.0,108180.0,1.06070713]
[1748037356310,0.19410278,108190.0,108180.0,1.39306713]
[1748037356642,0.19410278,108190.0,108180.0,1.90449497]
[1748037356847,0.19410278,108190.0,108180.0,1.26339497]
[1748037357052,0.28364834,108190.0,108180.0,1.39306713]
[1748037358732,0.28364834,108190.0,108180.0,1.41916713]
[1748037360802,0.28364834,108190.0,108180.0,1.11606713]
[1748037361019,0.29218919,108190.0,108180.0,1.39306713]
[1748037361555,0.29218919,108190.0,108180.0,1.38423592]
[1748037361793,0.29218919,108190.0,108180.0,1.37923592]
[1748037362000,0.29318919,108190.0,108180.0,1.37523592]
[1748037362212,0.29518919,108190.0,108180.0,1.37523592]
[1748037362878,0.32168919,108190.0,108180.0,1.34833592]
[1748037364125,0.32168919,108190.0,108180.0,1.07133592]
[1748037364582,0.32168919,108190.0,108180.0,0.34877592]
[1748037365007,0.32168919,108190.0,108180.0,0.00877592]
[1748037365842,0.32168919,108190.0,108180.0,0.34877592]
[1748037366176,0.32168919,108190.0,108180.0,0.00877592]
[1748037366814,0.86031703,108190.0,108180.0,0.00877592]
[1748037367223,0.86031703,108190.0,108180.0,0.00015216]
[1748037367428,0.94983854,108190.0,108180.0,0.00015216]
[1748037367851,1.23687854,108190.0,108180.0,0.00015216]
[1748037368696,1.22987854,108190.0,108180.0,0.01015216]
[1748037368897,1.56787854,108190.0,108180.0,0.01015216]
[1748037369118,1.56987854,108190.0,108180.0,0.01015216]
[1748037369330,1.57287854,108190.0,108180.0,0.01015216]
[1748037369525,1.56787854,108190.0,108180.0,0.01015216]
[1748037369939,1.67179854,108190.0,108180.0,0.01015216]
[1748037370365,1.73321767,108190.0,108180.0,0.01015216]
[1748037370823,1.74021767,108190.0,108180.0,0.01115216]
[1748037371239,1.22878983,108190.0,108180.0,0.01115216]
[1748037371445,2.25164551,108190.0,108180.0,0.01115216]
[1748037371850,1.74021767,108190.0,108180.0,0.01115216]
[1748037372263,1.22878983,108190.0,108180.0,0.01115216]
[1748037372469,1.74021767,108190.0,108180.0,0.01115216]
[1748037372672,2.69723551,108190.0,108180.0,0.01115216]
[1748037372925,0.24676141,108150.0,108140.0,0.7390888]
[1748037373134,0.33630697,108150.0,108140.0,0.40719484]
[1748037373344,0.33630697,108150.0,108140.0,0.01687484]
[1748037374431,0.33730697,108150.0,108140.0,0.01687484]
[1748037374636,0.33830697,108150.0,108140.0,0.01687484]
[1748037374845,0.36620697,108150.0,108140.0,0.01687484]
[1748037375052,0.45572848,108150.0,108140.0,0.01687484]
[1748037375260,0.96715632,108150.0,108140.0,0.01687484]
[1748037375464,0.36620697,108150.0,108140.0,0.01687484]
[1748037375673,0.87763481,108150.0,108140.0,0.01687484]
[1748037376287,0.86838857,108150.0,108140.0,0.01687484]
[1748037376696,1.15475481,108150.0,108140.0,0.01687484]
[1748037377302,1.16475481,108150.0,108140.0,0.01687484]
[1748037377548,1.25427632,108150.0,108140.0,0.01687484]
[1748037378082,0.74284848,108150.0,108140.0,0.01687484]
[1748037378216,1.25427632,108150.0,108140.0,0.01687484]
[1748037378613,0.74284848,108150.0,108140.0,0.01687484]
[1748037378822,1.25427632,108150.0,108140.0,0.01687484]
[1748037379256,0.74284848,108150.0,108140.0,0.01687484]
[1748037379459,1.25427632,108150.0,108140.0,0.01687484]
[1748037379668,0.74284848,108150.0,108140.0,0.01687484]
[1748037379895,1.25427632,108150.0,108140.0,0.01687484]
[1748037382635,0.74284848,108150.0,108140.0,0.01687484]
[1748037382835,1.25427632,108150.0,108140.0,0.01687484]
[1748037383874,0.65332697,108150.0,108140.0,0.01687484]
[1748037384077,1.15550883,108150.0,108140.0,0.01687484]
[1748037384294,1.16475481,108150.0,108140.0,0.01687484]
[1748037384606,0.84773481,108150.0,108140.0,0.01687484]
[1748037384805,0.34130697,108150.0,108140.0,0.01687484]
[1748037385212,0.85273481,108150.0,108140.0,0.01687484]
[1748037386569,0.34130697,108150.0,108140.0,0.01687484]
[1748037386857,0.85273481,108150.0,108140.0,0.01687484]
[1748037387262,0.85273481,108150.0,108140.0,0.02687484]
[1748037389353,0.94225632,108150.0,108140.0,0.02687484]
[1748037391016,0.43082848,108150.0,108140.0,0.02687484]
[1748037391246,0.94225632,108150.0,108140.0,0.02687484]
[1748037391839,0.93625632,108150.0,108140.0,0.02687484]
[1748037392051,0.96435632,108150.0,108140.0,0.02687484]
[1748037392255,0.93625632,108150.0,108140.0,0.02687484]
[1748037392671,0.33530697,108150.0,108140.0,0.02687484]
[1748037393065,0.84673481,108150.0,108140.0,0.02687484]
[1748037394361,0.33530697,108150.0,108140.0,0.02687484]
[1748037394575,0.84673481,108150.0,108140.0,0.02687484]
[1748037396740,0.33530697,108150.0,108140.0,0.02687484]
[1748037396965,0.81793481,108150.0,108140.0,0.03550311]
[1748037397416,0.30650697,108150.0,108140.0,0.03550311]
[1748037397634,0.33420697,108150.0,108140.0,0.03550311]
[1748037398501,0.42372848,108150.0,108140.0,0.03550311]
[1748037398730,0.93515632,108150.0,108140.0,0.03550311]
[1748037399548,0.94515632,108150.0,108140.0,0.03550311]
[1748037399993,0.93915632,108150.0,108140.0,0.03550311]
[1748037400163,0.84963481,108150.0,108140.0,0.03550311]
[1748037400990,0.87773481,108150.0,108140.0,0.03550311]
[1748037402302,1.38916265,108150.0,108140.0,0.03550311]
[1748037402542,1.38916265,108150.0,108140.0,0.02687484]
[1748037402758,0.87773481,108150.0,108140.0,0.02687484]
[1748037402978,1.4414979,108150.0,108140.0,0.02687484]
[1748037404342,1.4314979,108150.0,108140.0,0.02687484]
[1748037404594,0.41864222,108150.0,108140.0,0.02687484]
[1748037404762,0.19426439,108100.0,108090.0,0.28200616]
[1748037405039,0.28380995,108100.0,108090.0,0.67452616]
[1748037405820,0.28380995,108100.0,108090.0,0.68338886]
[1748037406026,0.28431425,108100.0,108090.0,0.96062886]
[1748037407250,0.28431425,108100.0,108090.0,0.96362886]
[1748037407457,0.28431425,108100.0,108090.0,0.96662886]
[1748037407770,0.28431425,108100.0,108090.0,1.02012886]
[1748037409568,0.28431425,108100.0,108090.0,0.74288886]
[1748037409775,0.2988551,108100.0,108090.0,0.99382886]
[1748037412014,0.3247551,108100.0,108090.0,0.29686886]
[1748037412215,0.86418294,108100.0,108090.0,0.0148627]
[1748037412432,1.14142294,108100.0,108090.0,0.0148627]
[1748037412856,0.3527551,108100.0,108090.0,0.0118627]
[1748037413063,1.02370445,108100.0,108090.0,0.0118627]
[1748037413266,0.52227661,108100.0,108090.0,0.002]
[1748037413474,1.03370445,108100.0,108090.0,0.002]
[1748037413693,1.03370445,108100.0,108090.0,0.004]
[1748037414384,1.02370445,108100.0,108090.0,0.002]
[1748037414791,1.02670445,108100.0,108090.0,0.003]
[1748037414936,1.02670445,108100.0,108090.0,0.001]
[1748037415169,1.02370445,108100.0,108090.0,0.001]
[1748037416695,1.41630445,108100.0,108090.0,0.001]
[1748037416867,1.76630445,108100.0,108090.0,0.001]
[1748037417550,1.76630445,108100.0,108090.0,0.011]
[1748037417880,2.27773229,108100.0,108090.0,0.011]
[1748037418105,2.54501229,108100.0,108090.0,0.011]
[1748037418339,2.03358445,108100.0,108090.0,0.011]
[1748037419202,2.03362445,108100.0,108090.0,0.011]
[1748037420692,2.04362445,108100.0,108090.0,0.011]
[1748037420917,2.03362445,108100.0,108090.0,0.011]
[1748037422446,1.52227661,108100.0,108090.0,0.011]
[1748037422649,1.04553425,108100.0,108090.0,0.011]
[1748037422854,1.55096209,108100.0,108090.0,0.011]
[1748037423058,1.28818294,108100.0,108090.0,0.011]
[1748037423273,0.7667551,108100.0,108090.0,0.011]
[1748037423486,0.37421425,108100.0,108090.0,0.011]
[1748037423929,0.3887551,108100.0,108090.0,0.011]
[1748037426620,0.46029412,108100.0,108090.0,0.011]
[1748037426824,0.3887551,108100.0,108090.0,0.011]
[1748037427876,0.3628551,108100.0,108090.0,0.011]
[1748037430046,0.3892551,108100.0,108090.0,0.011]
[1748037430644,0.3832551,108100.0,108090.0,0.011]
[1748037431528,0.3568551,108100.0,108090.0,0.011]
[1748037431734,0.3568551,108100.0,108090.0,0.037]
[1748037434196,0.3568551,108100.0,108090.0,0.0648]
[1748037434442,0.34231425,108100.0,108090.0,0.0648]
[1748037434609,0.34231425,108100.0,108090.0,0.34216]
[1748037434977,0.0765043,108100.0,108090.0,1.40637244]
[1748037435185,0.0065043,108100.0,108090.0,1.91880028]
[1748037435390,0.00924975,108110.0,108100.0,0.26655206]
[1748037435597,0.00924932,108110.0,108100.0,1.4078999]
[1748037435790,0.18501208,108130.0,108110.0,0.55274549]
[1748037435991,0.00924787,108130.0,108120.0,1.67662539]
[1748037436191,0.17292834,108150.0,108120.0,2.18574038]
[1748037436390,0.17292834,108150.0,108130.0,0.95906597]
[1748037436391,0.02774052,108140.0,108130.0,0.95906597]
[1748037436707,0.01849231,108150.0,108140.0,0.21268605]
[1748037436938,0.27744381,108160.0,108150.0,0.3928]
[1748037437097,0.27744381,108160.0,108150.0,0.90422784]
[1748037437293,0.01849026,108160.0,108150.0,1.06409439]
[1748037437645,0.18500204,108180.0,108170.0,0.18489414]
[1748037437807,0.0184871,108180.0,108170.0,1.55990295]
[1748037438000,0.21260757,108180.0,108170.0,1.40182018]
[1748037438196,0.20345927,108190.0,108180.0,0.06204368]
[1748037438396,0.01848522,108190.0,108180.0,0.2584749]
[1748037438596,0.22183005,108190.0,108180.0,0.26540783]
[1748037438802,0.21258783,108190.0,108180.0,0.26540783]
[1748037438999,0.22183082,108190.0,108180.0,0.26540783]
[1748037439248,0.20334577,108190.0,108180.0,0.0528]
[1748037439428,0.20334577,108190.0,108180.0,0.73736]
[1748037439630,0.20334577,108190.0,108180.0,0.7461692]
[1748037439824,0.29289133,108190.0,108180.0,0.0362092]
[1748037440124,0.29289133,108190.0,108180.0,0.6933692]
[1748037440528,0.36289133,108190.0,108180.0,0.0088092]
[1748037440705,0.36289133,108190.0,108180.0,0.6923692]
[1748037441018,0.36289133,108190.0,108180.0,0.6933692]
[1748037441243,0.36289133,108190.0,108180.0,0.6923692]
[1748037441448,0.36289133,108190.0,108180.0,0.68356]
[1748037441647,0.36589133,108190.0,108180.0,0.68356]
[1748037442569,0.36689133,108190.0,108180.0,0.68356]
[1748037443279,0.38143218,108190.0,108180.0,0.68356]
[1748037443500,0.19412073,108180.0,108170.0,0.3586]
[1748037443704,0.28366629,108180.0,108170.0,1.38196]
[1748037444728,0.28566629,108180.0,108170.0,1.38196]
[1748037445084,0.28566629,108180.0,108170.0,1.38184]
[1748037445287,0.28566629,108180.0,108170.0,1.3905689]
[1748037446362,0.28366629,108180.0,108170.0,1.3905689]
[1748037446735,0.28466629,108180.0,108170.0,1.3905689]
[1748037447521,0.28566629,108180.0,108170.0,1.3905689]
[1748037447749,0.28566629,108180.0,108170.0,1.3904889]
[1748037449866,0.28566629,108180.0,108170.0,0.7073289]
[1748037450039,0.28566629,108180.0,108170.0,1.3904889]
[1748037452437,0.38298645,108180.0,108170.0,0.3415289]
[1748037452642,0.48382754,108180.0,108170.0,0.0087289]
[1748037453654,0.01454085,108160.0,108150.0,0.69798858]
[1748037453858,0.28299765,108160.0,108150.0,0.00015226]
[1748037454072,0.32004304,108160.0,108150.0,0.68323226]
[1748037454296,0.32004304,108160.0,108150.0,0.40615226]
[1748037455238,0.32204304,108160.0,108150.0,0.40615226]
[1748037456069,0.32404304,108160.0,108150.0,0.40615226]
[1748037456274,0.32404304,108160.0,108150.0,0.41489441]
[1748037456929,0.37493676,108160.0,108150.0,0.00889441]
[1748037458136,0.37493676,108160.0,108150.0,0.00015226]
[1748037458919,0.40253676,108160.0,108150.0,0.00015226]
[1748037460962,0.35164304,108160.0,108150.0,0.00015226]
[1748037461167,0.86365799,108160.0,108150.0,0.00015226]
[1748037461566,1.23085714,108160.0,108150.0,0.00015226]
[1748037462184,1.23485714,108160.0,108150.0,0.00015226]
[1748037462377,1.23285714,108160.0,108150.0,0.00015226]
[1748037462520,1.32237865,108160.0,108150.0,0.00015226]
[1748037462735,1.32737865,108160.0,108150.0,0.00015226]
[1748037462944,1.39284865,108160.0,108150.0,0.00015226]
[1748037463166,1.38284865,108160.0,108150.0,0.00015226]
[1748037463589,1.3973895,108160.0,108150.0,0.00015226]
[1748037464881,1.4947095,108160.0,108150.0,0.00015226]
[1748037465080,2.00672445,108160.0,108150.0,0.00015226]
[1748037465822,2.40436445,108160.0,108150.0,0.00015226]
[1748037466231,0.01849564,108130.0,108120.0,0.01104648]
[1748037466367,0.38514278,108130.0,108120.0,0.01118689]
[1748037466937,0.36234459,108130.0,108120.0,0.01118689]
[1748037467140,0.72234459,108130.0,108120.0,0.01118689]
[1748037467272,0.72234459,108130.0,108120.0,0.00894054]
[1748037467486,0.79556359,108130.0,108120.0,0.00894054]
[1748037467878,1.30757854,108130.0,108120.0,0.00894054]
[1748037468060,1.39710005,108130.0,108120.0,0.00894054]
[1748037468203,1.40210005,108130.0,108120.0,0.00894054]
[1748037468413,1.40210005,108130.0,108120.0,0.00214041]
[1748037468616,0.2460555,108100.0,108090.0,0.01]
[1748037468859,0.36240106,108100.0,108090.0,0.01014094]
[1748037469059,0.46192257,108100.0,108090.0,0.01014094]
[1748037469648,0.86739257,108100.0,108090.0,0.01014094]
[1748037470287,0.86839257,108100.0,108090.0,0.01014094]
[1748037470599,0.85839257,108100.0,108090.0,0.01014094]
[1748037471074,0.95571257,108100.0,108090.0,0.01014094]
[1748037471295,1.25815257,108100.0,108090.0,0.01014094]
[1748037471488,1.25715257,108100.0,108090.0,0.01014094]
[1748037471719,1.25615257,108100.0,108090.0,0.01114094]
[1748037471932,1.20068257,108100.0,108090.0,0.01114094]
[1748037472139,0.23809316,108080.0,108070.0,4e-05]
[1748037472350,1.27666761,108080.0,108070.0,0.0005443]
[1748037472678,2.24360761,108080.0,108070.0,0.0005443]
[1748037472946,1.96636761,108080.0,108070.0,0.0005443]
[1748037473110,1.54390761,108080.0,108070.0,0.0005443]
[1748037473310,1.54390761,108080.0,108060.0,4e-05]
[1748037473311,0.27255917,108070.0,108060.0,4e-05]
[1748037473596,1.14132624,108070.0,108060.0,4e-05]
[1748037473932,1.15141224,108070.0,108060.0,4e-05]
[1748037474171,1.14315915,108070.0,108060.0,4e-05]
[1748037474378,1.15241224,108070.0,108060.0,4e-05]
[1748037474762,1.83157224,108070.0,108060.0,0.00204]
[1748037474980,1.15641224,108070.0,108060.0,0.00204]
[1748037475180,1.15641224,108070.0,108060.0,0.00104]
[1748037475181,1.39126388,108070.0,108060.0,0.00104]
[1748037475408,1.88927883,108070.0,108060.0,0.00104]
[1748037475580,1.89511968,108070.0,108060.0,0.00104]
[1748037475852,1.97564119,108070.0,108060.0,0.00104]
[1748037476052,1.44032924,108070.0,108060.0,0.00104]
[1748037476259,1.46732924,108070.0,108060.0,0.00104]
[1748037477210,1.37780773,108070.0,108060.0,0.00104]
[1748037477619,1.38680773,108070.0,108060.0,0.00104]
[1748037478396,0.69710773,108070.0,108060.0,0.00104]
[1748037479011,0.69340473,108070.0,108060.0,0.00104]
[1748037479616,0.72150473,108070.0,108060.0,0.00104]
[1748037479817,0.80202624,108070.0,108060.0,0.00104]
[1748037480191,0.81102624,108070.0,108060.0,0.00104]
[1748037481303,0.80202624,108070.0,108060.0,0.00104]
[1748037483705,0.85649624,108070.0,108060.0,0.00104]
[1748037484138,0.81102624,108070.0,108060.0,0.00104]
[1748037484353,1.48638624,108070.0,108060.0,0.00104]
[1748037484958,1.55002733,108070.0,108060.0,0.00104]
[1748037485195,2.11751228,108070.0,108060.0,0.00104]
[1748037485395,1.53185624,108070.0,108060.0,0.00104]
[1748037489821,0.66058312,108040.0,108030.0,0.00209009]
[1748037490009,0.20896711,108010.0,108000.0,0.03736937]
[1748037490166,0.29851267,108010.0,108000.0,0.03736937]
[1748037491220,0.29901662,108010.0,108000.0,0.01709577]
[1748037491878,0.32671662,108010.0,108000.0,0.01709577]
[1748037492085,0.34520337,108010.0,108000.0,0.01909577]
[1748037492293,0.34520337,108010.0,108000.0,0.02768193]
[1748037492490,0.29401662,108010.0,108000.0,0.02768193]
[1748037492894,0.29401662,108010.0,108000.0,0.02968193]
[1748037493062,0.29401662,108010.0,108000.0,0.02109577]
[1748037493244,0.29401662,108010.0,108000.0,0.07229577]
[1748037493245,0.27847577,108010.0,108000.0,0.07229577]
[1748037493454,0.27847577,108010.0,108000.0,0.07329577]
[1748037493815,0.27847577,108010.0,108000.0,0.00231475]
[1748037493816,0.27221754,108010.0,108000.0,0.00231475]
[1748037494024,0.18267198,108010.0,108000.0,0.9353191]
[1748037494239,0.01851465,108020.0,108010.0,0.21294219]
[1748037494415,0.2036652,108020.0,108010.0,0.20368439]
[1748037494654,0.21292257,108020.0,108010.0,0.21227587]
[1748037494865,0.19439035,108030.0,108020.0,0.19440826]
[1748037495039,0.21290354,108030.0,108020.0,0.19440826]
[1748037495303,0.02776594,108040.0,108030.0,0.22215877]
[1748037495516,0.01850968,108050.0,108040.0,0.20362767]
[1748037495736,0.19435446,108050.0,108040.0,0.27748]
[1748037496735,0.19535446,108050.0,108040.0,0.3377738]
[1748037497324,0.16206888,108050.0,108040.0,0.3377738]
[1748037498499,0.16206888,108050.0,108040.0,0.53214616]
[1748037498913,0.16206888,108050.0,108040.0,0.3377738]
[1748037499116,0.16306888,108050.0,108040.0,0.3407738]
[1748037499775,0.15706888,108050.0,108040.0,0.3407738]
[1748037499949,0.15706888,108050.0,108040.0,0.53514625]
[1748037500332,0.15706888,108050.0,108040.0,0.54440199]
[1748037500531,0.15706888,108050.0,108040.0,0.88440199]
[1748037500723,0.02050968,108050.0,108040.0,0.91216835]
[1748037500928,0.20560917,108050.0,108040.0,0.89365764]
[1748037502508,0.20560917,108050.0,108040.0,0.9227155]
[1748037505686,0.20560917,108050.0,108040.0,0.9327155]
[1748037506717,0.20560917,108050.0,108040.0,0.94152858]
[1748037506828,0.20560917,108050.0,108040.0,0.91247072]
[1748037507439,0.19960917,108050.0,108040.0,0.91247072]
[1748037508481,0.16632523,108050.0,108040.0,0.91247072]
[1748037508693,0.17557994,108050.0,108040.0,0.91247072]
[1748037508896,0.18516616,108060.0,108050.0,0.3948]
[1748037509072,0.18516616,108060.0,108050.0,0.72764]
[1748037510086,0.18716616,108060.0,108050.0,0.73164]
[1748037510494,0.18716616,108060.0,108050.0,0.74045308]
[1748037510699,0.18716616,108060.0,108050.0,0.92555257]
[1748037510948,0.18716616,108060.0,108050.0,0.74045308]
[1748037511150,0.18716616,108060.0,108050.0,0.94406234]
[1748037511395,0.18516616,108060.0,108050.0,0.94006242]
[1748037511601,0.18716616,108060.0,108050.0,0.94806242]
[1748037511897,0.002,108060.0,108050.0,1.50368698]
[1748037512063,0.002,108060.0,108050.0,1.50468698]
[1748037512263,0.00925206,108080.0,108070.0,0.57697131]
[1748037512496,0.22205652,108080.0,108070.0,1.2773168]
[1748037512712,0.02775369,108090.0,108080.0,0.58620429]
[1748037512915,0.22203622,108090.0,108080.0,0.57695266]
[1748037513058,0.18509423,108100.0,108080.0,0.57695266]
[1748037513267,0.0185018,108090.0,108080.0,0.595456]
[1748037513504,0.0185018,108090.0,108080.0,1.424383]
[1748037513505,0.00925077,108090.0,108080.0,1.424383]
[1748037513719,0.0185018,108090.0,108080.0,1.424383]
[1748037513902,0.0185018,108090.0,108080.0,1.44300221]
[1748037514296,0.027753,108090.0,108080.0,1.44300221]
[1748037514534,0.0185018,108090.0,108080.0,1.44300221]
[1748037514745,0.027753,108090.0,108080.0,1.21291621]
[1748037514952,0.20351413,108100.0,108090.0,0.59563365]
[1748037515179,0.20351439,108100.0,108090.0,0.60488468]
[1748037515350,0.22201525,108100.0,108090.0,0.60488468]
[1748037515562,0.03700138,108100.0,108090.0,0.61413563]
[1748037515756,0.03700138,108100.0,108090.0,0.62294871]
[1748037515961,0.21276568,108100.0,108090.0,0.58594407]
[1748037516168,0.21376568,108100.0,108090.0,0.59519544]
[1748037516402,0.21376568,108100.0,108090.0,0.59619544]
[1748037517082,0.29406072,108100.0,108090.0,0.41421308]
[1748037517281,0.34816072,108100.0,108090.0,0.41421308]
[1748037517527,0.34816072,108100.0,108090.0,0.00981308]
[1748037517930,0.36270157,108100.0,108090.0,0.00981308]
[1748037518282,0.36270157,108100.0,108090.0,0.00881308]
[1748037518466,0.36170157,108100.0,108090.0,0.00881308]
[1748037518672,0.36570157,108100.0,108090.0,0.00881308]
[1748037519915,0.36570157,108100.0,108080.0,9.38e-05]
[1748037519916,0.24838236,108090.0,108080.0,9.38e-05]
[1748037520063,0.35246877,108090.0,108080.0,9.38e-05]
[1748037521081,0.35246877,108090.0,108080.0,0.0010938]
[1748037521284,0.35346877,108090.0,108080.0,0.0010938]